bitfinex-derivatives/quotes_SOLF0:USTF0_20250428
["timestamp","ask_amount","ask_price","bid_price","bid_amount"]
[1745819347516,6.6979,149.27,149.23,6.6992]
[1745819349113,6.6979,149.27,149.24,6.699]
[1745819349313,16.89224277,149.28,149.24,6.699]
[1745819350514,10.19484277,149.28,149.2,30.2408]
[1745819350715,10.19484277,149.28,149.2,40.43564277]
[1745819351511,16.89224277,149.28,149.2,30.2408]
[1745819353317,16.89224277,149.28,149.25,6.6985]
[1745819355124,6.6979,149.27,149.23,6.6992]
[1745819355418,10.19484277,149.26,149.23,6.6992]
[1745819356117,10.19484277,149.26,149.24,6.6989]
[1745819356316,10.19484277,149.26,149.2,30.2408]
[1745819356516,10.19484277,149.26,149.25,6.6986]
[1745819357217,10.19484277,149.28,149.26,6.6981]
[1745819357717,24.4,149.29,149.2,40.43564277]
[1745819358716,24.4,149.29,149.27,6.6975]
[1745819360913,24.4,149.29,149.28,6.6973]
[1745819362719,10.19484277,149.3,149.28,6.6973]
[1745819363019,34.59484277,149.32,149.28,6.6973]
[1745819363220,41.29044277,149.32,149.28,6.6973]
[1745819363420,41.29044277,149.32,149.29,6.6967]
[1745819364420,34.59484277,149.32,149.3,6.6963]
[1745819364622,34.59484277,149.32,149.24,24.4]
[1745819365621,41.29044277,149.32,149.28,6.6969]
[1745819366922,34.59484277,149.32,149.24,24.4]
[1745819367520,10.19484277,149.32,149.25,4.1769]
[1745819368021,10.19484277,149.32,149.26,2.08]
[1745819368320,24.38,149.33,149.26,2.08]
[1745819368514,34.57484277,149.33,149.26,2.08]
[1745819368821,34.57484277,149.33,149.31,6.6956]
[1745819370926,34.57484277,149.33,149.32,6.6955]
[1745819372715,10.19484277,149.33,149.32,6.6955]
[1745819374117,10.19484277,149.33,149.31,6.6958]
[1745819374322,10.19484277,149.33,149.26,12.27484277]
[1745819374826,10.19484277,149.33,149.26,2.08]
[1745819375125,10.19484277,149.31,149.26,2.08]
[1745819375624,16.89094277,149.31,149.25,4.1769]
[1745819375817,10.19484277,149.29,149.22,2.0921]
[1745819376014,34.57484277,149.31,149.22,2.0921]
[1745819376015,10.19484277,149.27,149.22,2.0921]
[1745819376421,10.19484277,149.27,149.24,6.6989]
[1745819376925,10.19484277,149.27,149.22,2.0921]
[1745819377929,10.19484277,149.27,149.24,6.6988]
[1745819378127,10.19484277,149.27,149.22,2.0921]
[1745819379422,10.19484277,149.27,149.25,6.6986]
[1745819379933,10.19484277,149.27,149.26,6.6982]
[1745819380228,10.19484277,149.27,149.22,2.0921]
[1745819380924,10.19484277,149.27,149.25,6.6983]
[1745819381330,10.19484277,149.27,149.22,2.0921]
[1745819381527,10.19484277,149.29,149.26,6.6978]
[1745819383230,10.19484277,149.29,149.27,6.6977]
[1745819383428,10.19484277,149.29,149.22,2.0921]
[1745819383721,10.19484277,149.29,149.23,4.0937]
[1745819383925,10.19484277,149.29,149.27,6.6974]
[1745819384122,10.19484277,149.29,149.23,4.0937]
[1745819384626,10.19484277,149.29,149.28,6.6973]
[1745819386136,10.19484277,149.31,149.24,34.57484277]
[1745819386322,10.19484277,149.33,149.24,34.57484277]
[1745819386830,10.19484277,149.33,149.3,6.6961]
[1745819387331,10.19484277,149.33,149.24,34.57484277]
[1745819388030,10.19484277,149.33,149.31,6.6959]
[1745819391328,16.88914277,149.35,149.32,6.6955]
[1745819391534,34.57484277,149.35,149.26,10.19484277]
[1745819392429,34.57484277,149.35,149.32,6.6952]
[1745819393137,10.19484277,149.35,149.32,6.6952]
[1745819393835,16.88904277,149.35,149.32,6.6952]
[1745819395131,31.0738,149.36,149.32,6.6952]
[1745819395337,24.36,149.37,149.3,10.19484277]
[1745819395537,10.19484277,149.38,149.3,10.19484277]
[1745819395835,34.55484277,149.38,149.3,10.19484277]
[1745819396228,41.24804277,149.38,149.34,6.6945]
[1745819396841,41.24804277,149.38,149.35,6.6941]
[1745819398638,41.24804277,149.38,149.34,6.6944]
[1745819399938,6.6933,149.37,149.33,6.6949]
[1745819400333,10.19484277,149.36,149.3,6.696]
[1745819400940,6.6945,149.35,149.28,24.38]
[1745819401147,10.19484277,149.36,149.28,24.38]
[1745819401647,16.88874277,149.36,149.33,6.695]
[1745819401948,10.19484277,149.36,149.28,34.57484277]
[1745819402151,41.24784277,149.38,149.34,6.6943]
[1745819402447,34.55484277,149.38,149.28,34.57484277]
[1745819402748,6.6936,149.37,149.33,6.6948]
[1745819403049,10.19484277,149.36,149.33,6.6948]
[1745819403350,16.88884277,149.36,149.32,6.6954]
[1745819403750,16.88884277,149.36,149.28,34.57484277]
[1745819405551,10.19484277,149.36,149.28,34.57484277]
[1745819405843,10.19484277,149.36,149.29,2.0074]
[1745819406153,34.55484277,149.38,149.29,2.0074]
[1745819406450,34.55484277,149.38,149.35,6.6939]
[1745819406750,41.24784277,149.38,149.34,6.6944]
[1745819407049,34.55484277,149.38,149.34,6.6944]
[1745819408555,41.24804277,149.38,149.34,6.6944]
[1745819409052,41.24804277,149.38,149.35,6.6941]
[1745819410652,41.24804277,149.38,149.34,6.6944]
[1745819411452,6.6934,149.37,149.34,6.6944]
[1745819412953,6.6938,149.36,149.33,6.695]
[1745819413143,16.88864277,149.36,149.33,6.695]
[1745819413448,10.19484277,149.34,149.31,6.6957]
[1745819414353,10.19484277,149.34,149.28,24.38]
[1745819414553,10.19484277,149.32,149.29,6.6966]
[1745819416455,10.19484277,149.32,149.28,6.6972]
[1745819417251,6.696,149.31,149.28,6.6972]
[1745819417556,6.696,149.31,149.27,6.6976]
[1745819417948,16.89134277,149.3,149.27,6.6976]
[1745819418154,34.55484277,149.3,149.21,40.48704277]
[1745819418755,6.6976,149.28,149.25,6.6986]
[1745819418950,34.55484277,149.3,149.25,6.6986]
[1745819419347,6.6969,149.29,149.25,6.6986]
[1745819420254,16.89124277,149.3,149.26,6.6981]
[1745819420458,24.36,149.29,149.26,6.6981]
[1745819420658,24.36,149.29,149.21,40.48704277]
[1745819420854,24.36,149.29,149.28,6.6973]
[1745819421050,34.55484277,149.32,149.28,6.6973]
[1745819421255,34.55484277,149.32,149.27,6.6977]
[1745819421755,6.6963,149.31,149.27,6.6977]
[1745819422157,10.19484277,149.28,149.21,30.2922]
[1745819424063,10.19484277,149.28,149.26,6.6981]
[1745819424464,24.36,149.29,149.26,6.6981]
[1745819424862,31.0571,149.29,149.25,6.6985]
[1745819428666,31.0571,149.29,149.26,6.6981]
[1745819428969,31.0571,149.29,149.21,40.48704277]
[1745819429164,31.0571,149.29,149.25,6.6983]
[1745819429364,6.6973,149.28,149.25,6.6983]
[1745819430464,31.057,149.29,149.25,6.6983]
[1745819431168,31.057,149.29,149.26,6.6982]
[1745819431869,3.8397,149.31,149.21,40.48704277]
[1745819431870,10.19484277,149.32,149.23,10.19484277]
[1745819432072,34.55484277,149.32,149.23,10.19484277]
[1745819432774,6.6961,149.31,149.23,10.19484277]
[1745819433474,6.6961,149.31,149.28,6.697]
[1745819433666,34.55484277,149.32,149.28,6.697]
[1745819435073,34.55484277,149.32,149.29,6.6967]
[1745819436072,34.55484277,149.32,149.28,6.6972]
[1745819436270,6.696,149.31,149.28,6.6972]
[1745819436572,34.55484277,149.32,149.28,6.6972]
[1745819436871,41.25054277,149.32,149.28,6.6972]
[1745819437370,24.36,149.32,149.25,34.55484277]
[1745819437570,24.36,149.32,149.26,6.0596]
[1745819438278,24.36,149.32,149.3,6.6963]
[1745819438576,10.19484277,149.33,149.26,6.0596]
[1745819439074,24.36,149.34,149.27,10.19484277]
[1745819439672,24.36,149.34,149.31,6.6956]
[1745819441575,31.0546,149.34,149.31,6.6956]
[1745819442176,24.36,149.34,149.31,6.6956]
[1745819446681,24.36,149.34,149.32,6.6954]
[1745819447078,16.88914277,149.35,149.32,6.6954]
[1745819447279,6.6943,149.35,149.32,6.6954]
[1745819448381,6.6939,149.36,149.32,6.6954]
[1745819448582,6.6939,149.36,149.33,6.6947]
[1745819451485,16.88824277,149.37,149.34,6.6945]
[1745819456388,10.19484277,149.37,149.35,6.6941]
[1745819456889,6.6929,149.38,149.35,6.6941]
[1745819457586,41.24744277,149.39,149.35,6.6941]
[1745819458183,41.24744277,149.39,149.29,34.55484277]
[1745819458184,16.88744277,149.39,149.36,6.6937]
[1745819460486,6.693,149.38,149.35,6.694]
[1745819460986,6.6934,149.37,149.34,6.6946]
[1745819461289,10.19484277,149.39,149.34,6.6946]
[1745819461689,6.6931,149.38,149.34,6.6946]
[1745819462087,6.6931,149.38,149.35,6.694]
[1745819467496,16.88744277,149.39,149.35,6.694]
[1745819472904,6.6929,149.38,149.35,6.694]
[1745819474109,6.6929,149.38,149.32,5.8376]
[1745819474110,6.6938,149.36,149.33,6.6949]
[1745819474402,10.19484277,149.35,149.29,24.34]
[1745819474801,16.88904277,149.35,149.29,24.34]
[1745819475308,16.88904277,149.35,149.31,6.6957]
[1745819475502,16.88904277,149.35,149.29,24.34]
[1745819475907,16.88904277,149.35,149.31,6.6957]
[1745819477105,16.88904277,149.35,149.32,6.6954]
[1745819479015,24.34,149.36,149.33,6.695]
[1745819479209,24.34,149.36,149.29,34.53484277]
[1745819479403,34.53484277,149.39,149.29,34.53484277]
[1745819479812,6.6931,149.38,149.34,6.6942]
[1745819480610,6.6931,149.38,149.35,6.6941]
[1745819481413,31.0325,149.39,149.35,6.6941]
[1745819481705,31.0325,149.39,149.36,6.6937]
[1745819482616,31.0325,149.39,149.35,6.6941]
[1745819484014,31.0321,149.4,149.33,10.19484277]
[1745819484211,31.0321,149.4,149.33,34.53484277]
[1745819484411,31.0321,149.4,149.35,6.6941]
[1745819485316,482.18,149.42,149.33,34.53484277]
[1745819485317,6.6915,149.42,149.33,34.53484277]
[1745819485609,24.34,149.43,149.33,34.53484277]
[1745819485817,10.19484277,149.41,149.33,34.53484277]
[1745819486420,24.34,149.43,149.33,34.53484277]
[1745819486618,10.19484277,149.41,149.33,34.53484277]
[1745819486814,24.34,149.43,149.33,34.53484277]
[1745819487018,10.19484277,149.41,149.37,6.6929]
[1745819487521,16.88634277,149.41,149.37,6.6929]
[1745819488218,10.19484277,149.41,149.38,6.6928]
[1745819488419,34.53484277,149.43,149.33,34.53484277]
[1745819488820,41.22574277,149.43,149.39,6.6923]
[1745819489218,31.0309,149.43,149.39,6.6923]
[1745819489416,34.51484277,149.43,149.35,10.19484277]
[1745819490218,41.20544277,149.43,149.35,10.19484277]
[1745819490620,41.20544277,149.43,149.39,6.6921]
[1745819490820,31.0106,149.43,149.39,6.6921]
[1745819492117,24.32,149.43,149.35,10.19484277]
[1745819492420,16.88504277,149.44,149.4,6.6918]
[1745819492823,10.19484277,149.44,149.37,24.32]
[1745819493023,16.88494277,149.44,149.4,6.6916]
[1745819496826,10.19484277,149.42,149.39,6.6922]
[1745819498830,16.88584277,149.42,149.39,6.6922]
[1745819503231,10.19484277,149.42,149.39,6.6922]
[1745819503731,10.19484277,149.42,149.4,6.6918]
[1745819504032,16.88514277,149.44,149.4,6.6918]
[1745819504233,16.88514277,149.44,149.41,6.6915]
[1745819505133,1.5622,149.48,149.37,34.51484277]
[1745819505334,34.51484277,149.48,149.39,10.19484277]
[1745819505935,34.51484277,149.48,149.45,6.6896]
[1745819508236,41.20334277,149.48,149.44,6.6899]
[1745819509738,6.6888,149.47,149.42,6.6906]
[1745819510133,6.6888,149.47,149.41,24.32]
[1745819510838,6.6888,149.47,149.43,6.6903]
[1745819512139,41.20334277,149.48,149.44,6.6898]
[1745819513043,6.6888,149.47,149.44,6.6898]
[1745819513339,6.6888,149.47,149.43,6.6904]
[1745819513540,6.6888,149.47,149.41,24.32]
[1745819513738,6.6888,149.47,149.43,6.6903]
[1745819514239,41.20324277,149.48,149.41,24.32]
[1745819514444,34.51484277,149.48,149.44,6.6899]
[1745819515141,6.6888,149.47,149.43,6.6904]
[1745819515737,6.6888,149.47,149.44,6.6901]
[1745819515944,41.20324277,149.48,149.44,6.6901]
[1745819516344,41.20324277,149.48,149.45,6.6896]
[1745819516944,1.16458068,149.58,149.46,24.3]
[1745819517143,10.19484277,149.55,149.47,38.52714277]
[1745819517345,10.19484277,149.55,149.47,28.3323]
[1745819517644,10.19484277,149.55,149.48,6.688]
[1745819518344,10.19484277,149.55,149.49,6.6877]
[1745819519843,16.88044277,149.55,149.49,6.6877]
[1745819520047,10.19484277,149.53,149.49,6.6877]
[1745819521944,10.19484277,149.51,149.46,24.3]
[1745819522144,10.19484277,149.53,149.46,24.3]
[1745819522847,10.19484277,149.53,149.49,6.6875]
[1745819524349,10.19484277,149.53,149.48,6.6882]
[1745819524846,10.19484277,149.53,149.47,6.6888]
[1745819525042,10.19484277,149.51,149.47,6.6888]
[1745819525949,10.19484277,149.51,149.48,6.6883]
[1745819527049,41.18104277,149.53,149.48,6.6883]
[1745819530052,6.6866,149.52,149.47,6.6887]
[1745819530250,34.49484277,149.53,149.45,26.3633]
[1745819530452,24.3,149.53,149.45,36.55814277]
[1745819530653,34.8197,149.56,149.51,6.687]
[1745819532857,16.88014277,149.55,149.5,6.6873]
[1745819533157,10.19484277,149.55,149.47,10.19484277]
[1745819533357,10.19484277,149.55,149.46,1.9571]
[1745819533556,6.6858,149.54,149.49,6.6876]
[1745819533857,6.6858,149.54,149.46,1.9571]
[1745819534253,16.88014277,149.55,149.5,6.6874]
[1745819534458,10.19484277,149.55,149.46,1.9571]
[1745819534758,10.19484277,149.53,149.46,1.9571]
[1745819535059,10.19484277,149.51,149.44,506.02]
[1745819535355,6.6877,149.5,149.45,0.32479]
[1745819535563,10.19484277,149.49,149.45,0.32479]
[1745819536153,10.19484277,149.51,149.45,0.32479]
[1745819536853,24.3,149.51,149.45,0.32479]
[1745819537463,24.3,149.51,149.47,6.6885]
[1745819537660,24.3,149.51,149.45,0.32479]
[1745819537856,10.19484277,149.5,149.45,0.32479]
[1745819538258,10.19484277,149.5,149.46,6.6891]
[1745819538558,30.9871,149.51,149.46,6.6891]
[1745819539059,30.9871,149.51,149.47,6.6887]
[1745819539361,30.9871,149.51,149.45,0.32479]
[1745819539661,30.9871,149.51,149.46,6.6891]
[1745819539859,6.6875,149.5,149.46,6.6891]
[1745819540061,24.3,149.51,149.45,0.32479]
[1745819540555,30.9873,149.51,149.46,6.6892]
[1745819540960,30.9873,149.51,149.45,0.32479]
[1745819541161,24.3,149.51,149.45,0.32479]
[1745819542361,24.3,149.51,149.47,6.6884]
[1745819542763,24.3,149.51,149.45,0.32479]
[1745819542960,30.9864,149.53,149.46,10.19484277]
[1745819543264,24.3,149.53,149.46,10.19484277]
[1745819543562,24.3,149.53,149.46,14.23774277]
[1745819544063,6.6866,149.52,149.48,6.688]
[1745819544363,6.6866,149.52,149.46,14.23774277]
[1745819546063,6.6866,149.52,149.48,6.6881]
[1745819546865,6.6866,149.52,149.49,6.6877]
[1745819547164,24.3,149.53,149.47,24.28]
[1745819547465,24.3,149.53,149.5,6.6872]
[1745819547661,6.6858,149.54,149.48,10.19484277]
[1745819548060,6.6858,149.54,149.5,6.6872]
[1745819548467,6.6858,149.54,149.48,10.19484277]
[1745819548862,6.6853,149.55,149.51,6.6869]
[1745819549761,34.47484277,149.56,149.51,6.6869]
[1745819549762,24.28,149.56,149.51,6.6869]
[1745819550068,24.28,149.58,149.51,24.28]
[1745819550476,24.28,149.58,149.52,10.19484277]
[1745819551470,24.28,149.58,149.54,6.6854]
[1745819551678,24.28,149.58,149.52,10.19484277]
[1745819551867,30.3933,149.61,149.52,14.21784277]
[1745819552066,30.3933,149.61,149.55,6.6849]
[1745819552267,10.19484277,149.6,149.52,14.21784277]
[1745819552572,6.6836,149.59,149.54,6.6853]
[1745819553171,6.6836,149.59,149.55,6.6852]
[1745819553974,16.87784277,149.6,149.55,6.6852]
[1745819554273,10.19484277,149.6,149.54,6.6856]
[1745819554471,10.19484277,149.6,149.52,4.023]
[1745819554671,16.87794277,149.6,149.52,4.023]
[1745819554970,16.87794277,149.6,149.55,6.6849]
[1745819555874,10.19484277,149.6,149.56,6.6847]
[1745819557065,16.87784277,149.6,149.55,6.685]
[1745819557772,6.683,149.6,149.55,6.685]
[1745819557972,16.87784277,149.6,149.55,6.685]
[1745819558672,6.683,149.6,149.55,6.685]
[1745819558873,16.87784277,149.6,149.56,6.6847]
[1745819559072,16.87784277,149.6,149.52,14.21784277]
[1745819559272,16.87784277,149.6,149.55,6.685]
[1745819560073,6.6834,149.59,149.55,6.685]
[1745819563072,16.87804277,149.6,149.56,6.6847]
[1745819563373,16.87804277,149.6,149.57,6.6843]
[1745819563671,16.87804277,149.6,149.52,14.21784277]
[1745819564074,16.87804277,149.6,149.55,6.6848]
[1745819564271,16.87804277,149.6,149.52,14.21784277]
[1745819564765,16.87804277,149.6,149.56,6.6847]
[1745819565175,6.6834,149.59,149.56,6.6847]
[1745819565372,10.19484277,149.6,149.57,6.6843]
[1745819565670,24.28,149.61,149.57,6.6843]
[1745819565870,6.683,149.6,149.54,10.19484277]
[1745819566073,24.28,149.61,149.54,10.19484277]
[1745819566376,30.9626,149.61,149.54,10.19484277]
[1745819567074,30.9626,149.61,149.57,6.6843]
[1745819573286,30.9626,149.61,149.58,6.6839]
[1745819574283,24.28,149.61,149.58,6.6839]
[1745819575881,24.28,149.61,149.59,6.6832]
[1745819577282,24.28,149.61,149.55,24.28]
[1745819577784,30.9625,149.61,149.57,6.6839]
[1745819579184,6.683,149.6,149.57,6.6839]
[1745819579983,24.28,149.61,149.55,24.28]
[1745819580184,10.19484277,149.6,149.52,38.49784277]
[1745819580584,6.6836,149.59,149.55,6.6851]
[1745819586889,6.6836,149.59,149.56,6.6847]
[1745819591502,24.28,149.64,149.57,6.6842]
[1745819591694,6.50650555,149.6,149.57,6.6842]
[1745819592198,13.18960555,149.6,149.56,13.19110555]
[1745819593997,13.18960555,149.6,149.56,6.6846]
[1745819594801,13.19000555,149.59,149.56,6.6846]
[1745819595504,13.19000555,149.59,149.55,13.19150555]
[1745819596002,13.19000555,149.59,149.56,6.6848]
[1745819596303,6.6832,149.6,149.56,6.6848]
[1745819596504,6.50650555,149.59,149.56,6.6848]
[1745819596908,13.19020555,149.59,149.55,13.19140555]
[1745819597108,13.19020555,149.59,149.55,6.50650555]
[1745819598307,13.19020555,149.59,149.56,6.6847]
[1745819600699,6.6844,149.57,149.54,6.50650555]
[1745819600904,6.50650555,149.57,149.52,6.50650555]
[1745819602302,24.28,149.61,149.53,6.6858]
[1745819602608,6.50650555,149.56,149.53,6.6858]
[1745819603208,6.50650555,149.56,149.54,6.6856]
[1745819605211,6.6835,149.59,149.55,13.19140555]
[1745819605411,6.50650555,149.59,149.55,6.50650555]
[1745819605610,6.50650555,149.59,149.52,3.992]
[1745819605611,6.50650555,149.58,149.54,6.50650555]
[1745819605812,13.19070555,149.58,149.54,13.19190555]
[1745819606110,6.50650555,149.57,149.53,6.50650555]
[1745819606312,6.50650555,149.57,149.52,10.49850555]
[1745819606512,6.50650555,149.57,149.52,6.50650555]
[1745819607313,6.6848,149.56,149.53,6.6859]
[1745819607708,6.50650555,149.55,149.5,6.50650555]
[1745819607913,6.50650555,149.52,149.49,0.34347]
[1745819608215,6.50650555,149.5,149.42,6.50650555]
[1745819608418,24.26,149.51,149.42,6.50650555]
[1745819608419,13.19600555,149.46,149.44,7.88408818]
[1745819608805,6.50650555,149.46,149.44,7.88408818]
[1745819609114,13.19540555,149.47,149.44,7.88408818]
[1745819609511,1.9604,149.51,149.44,7.88408818]
[1745819609709,24.26,149.51,149.44,18.06864429]
[1745819609909,24.28,149.52,149.44,18.06864429]
[1745819610115,30.9669,149.52,149.47,6.6885]
[1745819610911,30.9669,149.52,149.48,6.6883]
[1745819612317,6.6871,149.51,149.47,6.6887]
[1745819612717,30.9667,149.52,149.48,6.6881]
[1745819613217,24.28,149.52,149.48,6.6881]
[1745819615318,24.28,149.52,149.49,6.6879]
[1745819615618,24.28,149.52,149.46,10.18455611]
[1745819616619,24.28,149.52,149.48,6.688]
[1745819617820,24.28,149.52,149.49,6.6877]
[1745819620724,30.9666,149.52,149.48,6.6882]
[1745819621117,30.9666,149.52,149.47,4.0691]
[1745819621520,30.9666,149.52,149.47,2.0675]
[1745819621725,6.687,149.51,149.47,6.6886]
[1745819622523,30.9667,149.52,149.48,6.6883]
[1745819623225,6.6871,149.51,149.48,6.6883]
[1745819623428,34.46455611,149.52,149.46,6.6888]
[1745819624227,6.6875,149.5,149.47,6.6887]
[1745819624624,34.46455611,149.52,149.47,6.6887]
[1745819624923,6.6873,149.51,149.47,6.6887]
[1745819625128,34.46455611,149.52,149.48,6.6883]
[1745819625330,41.15135611,149.52,149.48,6.6883]
[1745819627129,6.6872,149.51,149.48,6.6883]
[1745819628830,30.9667,149.52,149.49,6.6879]
[1745819630230,24.28,149.54,149.46,10.18455611]
[1745819630431,24.28,149.54,149.47,3.8628]
[1745819630630,24.28,149.54,149.52,6.6865]
[1745819634333,24.28,149.54,149.48,12.20515611]
[1745819634334,24.28,149.54,149.53,6.6861]
[1745819634529,505.58,149.56,149.53,6.6861]
[1745819634833,505.58,149.56,149.48,12.20515611]
[1745819635835,512.2648,149.56,149.52,6.6862]
[1745819636134,512.2648,149.56,149.48,12.20515611]
[1745819636935,505.58,149.56,149.48,12.20515611]
[1745819637136,24.28,149.56,149.5,10.18455611]
[1745819637533,24.28,149.56,149.53,6.6859]
[1745819637833,24.28,149.56,149.5,34.46455611]
[1745819638731,6.6844,149.57,149.5,34.46455611]
[1745819639236,6.684,149.58,149.54,6.6853]
[1745819640336,43.22965611,149.59,149.55,6.6851]
[1745819640532,36.54615611,149.59,149.5,34.46455611]
[1745819640933,6.6845,149.57,149.5,34.46455611]
[1745819641441,36.54615611,149.59,149.5,34.46455611]
[1745819641937,6.684,149.58,149.54,6.6854]
[1745819642237,6.684,149.58,149.5,34.46455611]
[1745819643735,10.18455611,149.57,149.5,24.28]
[1745819643939,10.18455611,149.57,149.52,6.6863]
[1745819644739,6.6852,149.55,149.52,6.6863]
[1745819645136,10.18455611,149.57,149.52,6.6863]
[1745819645336,6.6851,149.56,149.52,6.6863]
[1745819646841,6.6851,149.56,149.53,6.6861]
[1745819648243,16.86905611,149.57,149.53,6.6861]
[1745819648440,16.86905611,149.57,149.54,6.6856]
[1745819648738,6.6837,149.59,149.52,10.18455611]
[1745819648947,24.28,149.6,149.56,6.6845]
[1745819649241,30.9634,149.6,149.56,6.6845]
[1745819649738,30.9634,149.6,149.57,6.6843]
[1745819649938,30.9634,149.6,149.52,10.18455611]
[1745819650143,30.9634,149.6,149.56,6.6844]
[1745819650646,24.28,149.6,149.54,10.18455611]
[1745819650943,34.46455611,149.62,149.54,34.46455611]
[1745819651647,41.14685611,149.62,149.54,34.46455611]
[1745819651946,34.46455611,149.62,149.54,34.46455611]
[1745819652348,34.46455611,149.62,149.59,6.6831]
[1745819652747,34.46455611,149.62,149.54,34.46455611]
[1745819653050,41.14695611,149.62,149.58,6.6837]
[1745819653849,41.14695611,149.62,149.59,6.6833]
[1745819654147,34.46455611,149.62,149.59,6.6833]
[1745819654747,24.28,149.62,149.59,6.6833]
[1745819655347,30.9621,149.62,149.59,6.6833]
[1745819655845,24.28,149.62,149.6,6.6829]
[1745819656754,24.28,149.62,149.59,6.6832]
[1745819657350,24.28,149.62,149.6,6.6829]
[1745819657551,24.28,149.62,149.56,10.18455611]
[1745819658052,24.28,149.62,149.59,6.6832]
[1745819658453,24.28,149.62,149.56,10.18455611]
[1745819658646,24.28,149.62,149.6,6.6828]
[1745819658846,24.28,149.62,149.56,10.18455611]
[1745819659049,26.293,149.65,149.62,6.6821]
[1745819659647,32.9738,149.65,149.62,6.6821]
[1745819660251,26.293,149.65,149.62,6.6821]
[1745819660647,26.293,149.65,149.61,6.6824]
[1745819660848,32.974,149.65,149.61,6.6824]
[1745819661947,6.6812,149.64,149.6,6.6829]
[1745819663748,6.6812,149.64,149.58,24.26]
[1745819663749,10.18455611,149.64,149.59,6.6833]
[1745819664347,6.6817,149.63,149.59,6.6833]
[1745819665553,6.6817,149.63,149.6,6.6829]
[1745819666156,10.18455611,149.64,149.61,6.6823]
[1745819666355,24.26,149.65,149.61,6.6823]
[1745819666559,24.26,149.65,149.58,10.18455611]
[1745819667255,24.26,149.65,149.63,6.6816]
[1745819667750,16.86485611,149.66,149.63,6.6816]
[1745819667963,12.08805611,149.68,149.6,10.18455611]
[1745819668151,24.26,149.68,149.6,10.18455611]
[1745819668354,24.26,149.68,149.6,14.29785611]
[1745819669056,30.9394,149.68,149.6,14.29785611]
[1745819669659,6.6798,149.67,149.6,14.29785611]
[1745819669854,34.44455611,149.68,149.6,14.29785611]
[1745819670162,34.44455611,149.68,149.63,6.6814]
[1745819670355,6.6802,149.67,149.6,14.29785611]
[1745819670560,34.44455611,149.68,149.6,14.29785611]
[1745819671261,6.68,149.67,149.63,6.6814]
[1745819674463,41.12415611,149.68,149.64,6.6811]
[1745819674758,24.26,149.68,149.6,16.29615611]
[1745819675261,30.9394,149.68,149.64,6.6809]
[1745819675659,24.26,149.68,149.6,16.29615611]
[1745819675964,36.31945611,149.7,149.62,10.18455611]
[1745819676866,6.6792,149.69,149.65,6.6803]
[1745819680567,36.31945611,149.7,149.61,10.18455611]
[1745819681069,24.24,149.7,149.61,10.18455611]
[1745819681774,6.6794,149.68,149.65,6.6807]
[1745819682373,6.68,149.67,149.63,6.6816]
[1745819683575,10.18455611,149.69,149.63,6.6816]
[1745819683576,6.6804,149.66,149.63,6.6816]
[1745819686582,6.6804,149.66,149.62,6.6818]
[1745819686770,10.18455611,149.67,149.59,24.26]
[1745819687079,24.24,149.66,149.59,24.26]
[1745819687280,6.6815,149.64,149.6,6.6827]
[1745819687875,6.6819,149.63,149.59,30.9433]
[1745819688081,10.18455611,149.65,149.56,40.47305611]
[1745819688879,6.6815,149.64,149.6,6.6826]
[1745819690079,24.24,149.66,149.6,10.18455611]
[1745819691881,24.24,149.66,149.63,6.6813]
[1745819693281,30.9203,149.66,149.63,6.6813]
[1745819694384,24.24,149.66,149.64,6.6811]
[1745819695785,24.24,149.66,149.63,6.6815]
[1745819695974,30.9204,149.66,149.63,6.6815]
[1745819696683,24.24,149.66,149.64,6.681]
[1745819696883,24.24,149.66,149.6,34.42455611]
[1745819697281,24.24,149.66,149.63,6.6814]
[1745819698383,24.24,149.66,149.64,6.6809]